bitfinex/quotes_BTCUSD_20241002
["timestamp","ask_amount","ask_price","bid_price","bid_amount"]
[1727836072748,0.129557,61749.0,61746.0,0.04808539]
[1727836072954,0.003,61747.0,61746.0,0.04808539]
[1727836073171,0.007,61747.0,61746.0,0.04808539]
[1727836073647,0.276859,61757.0,61753.0,0.229548]
[1727836073648,0.000818,61757.0,61753.0,0.229548]
[1727836073876,0.000818,61757.0,61753.0,0.25638079]
[1727836074114,0.000818,61757.0,61756.0,0.24371528]
[1727836074342,0.000818,61757.0,61756.0,0.2669539]
[1727836074558,0.00612,61771.0,61764.0,0.1689791]
[1727836075010,0.00612,61771.0,61767.0,0.129518]
[1727836075231,0.00612,61771.0,61767.0,0.2984971]
[1727836076334,0.08957047,61768.0,61767.0,0.2984971]
[1727836077000,0.08657047,61768.0,61767.0,0.2984971]
[1727836077860,0.08738947,61768.0,61767.0,0.2984971]
[1727836078106,0.08738947,61768.0,61767.0,0.3014971]
[1727836078324,0.08738947,61768.0,61767.0,0.30572595]
[1727836078573,0.08738947,61768.0,61767.0,0.5734204]
[1727836078782,0.08738947,61768.0,61767.0,0.56518283]
[1727836078997,0.08738947,61768.0,61767.0,0.56618283]
[1727836079218,0.08738947,61768.0,61767.0,0.56818283]
[1727836079471,0.08738947,61768.0,61767.0,0.56518283]
[1727836079681,0.00612,61771.0,61770.0,0.23150328]
[1727836079906,0.00612,61771.0,61770.0,0.39619773]
[1727836080115,0.00612,61771.0,61770.0,0.56517683]
[1727836081371,0.00612,61771.0,61770.0,0.57917683]
[1727836081580,0.00612,61771.0,61770.0,0.56517683]
[1727836082041,0.00612,61771.0,61770.0,0.57917683]
[1727836082250,0.00612,61771.0,61770.0,0.56517683]
[1727836082688,0.00612,61771.0,61770.0,0.57917683]
[1727836082897,0.00612,61771.0,61770.0,0.59317683]
[1727836083118,0.00612,61771.0,61770.0,0.42848238]
[1727836083355,0.00612,61771.0,61770.0,0.4264911]
[1727836083604,0.00612,61771.0,61770.0,0.42848238]
[1727836083866,0.00612,61771.0,61770.0,0.41448238]
[1727836084307,0.00612,61771.0,61770.0,0.42848238]
[1727836084557,0.00612,61771.0,61770.0,0.30048238]
[1727836084803,0.00612,61771.0,61770.0,0.135512]
[1727836085045,0.00612,61771.0,61770.0,0.1527493]
[1727836085562,0.00612,61771.0,61770.0,0.1327493]
[1727836085822,0.00612,61771.0,61770.0,0.1347493]
[1727836086078,0.00612,61771.0,61770.0,0.133512]
[1727836087351,0.00612,61771.0,61770.0,0.004]
[1727836087631,0.00612,61771.0,61770.0,0.131512]
[1727836087871,0.0143095,61771.0,61770.0,0.13474943]
[1727836088112,0.00612,61771.0,61770.0,0.131512]
[1727836088384,0.00612,61771.0,61770.0,0.133512]
[1727836088590,0.00612,61771.0,61770.0,0.131512]
[1727836088824,0.00612,61771.0,61770.0,0.133512]
[1727836089056,0.00612,61771.0,61770.0,0.131512]
[1727836089297,0.00612,61771.0,61770.0,0.129512]
[1727836089533,0.00612,61771.0,61770.0,0.131512]
[1727836091132,0.006939,61771.0,61770.0,0.002]
[1727836091357,0.006939,61771.0,61767.0,0.260674]
[1727836091358,0.3054281,61771.0,61767.0,0.001638]
[1727836091573,0.0926,61770.0,61767.0,0.001638]
[1727836091784,0.0792,61769.0,61767.0,0.001638]
[1727836092234,0.0082152,61768.0,61767.0,0.001638]
[1727836092700,0.0082152,61768.0,61767.0,0.002638]
[1727836093582,0.0082152,61768.0,61767.0,0.132156]
[1727836093787,0.0082152,61768.0,61767.0,0.131156]
[1727836094214,0.0926,61770.0,61767.0,0.001638]
[1727836094421,0.001,61769.0,61767.0,0.002638]
[1727836094631,0.00914541,61769.0,61767.0,0.002638]
[1727836094879,0.03952565,61769.0,61768.0,0.129516]
[1727836095122,0.03852565,61769.0,61768.0,0.13150728]
[1727836095345,0.03352565,61769.0,61768.0,0.13150728]
[1727836095557,0.03038024,61769.0,61768.0,0.13150728]
[1727836095763,0.03038024,61769.0,61768.0,0.129516]
[1727836096181,0.02538024,61769.0,61768.0,0.129516]
[1727836096388,0.006939,61771.0,61770.0,0.129512]
[1727836098068,0.009939,61771.0,61770.0,0.129512]
[1727836098696,0.007939,61771.0,61770.0,0.129512]
[1727836098903,0.008939,61771.0,61770.0,0.129512]
[1727836099328,0.03431828,61771.0,61770.0,0.129512]
[1727836099738,0.03331828,61771.0,61770.0,0.129512]
[1727836100423,0.03231828,61771.0,61770.0,0.129512]
[1727836100862,0.03331828,61771.0,61770.0,0.129512]
[1727836101108,0.03431828,61771.0,61770.0,0.129512]
[1727836102689,0.03331828,61771.0,61770.0,0.129512]
[1727836103081,0.03431828,61771.0,61770.0,0.129512]
[1727836103286,0.03431828,61771.0,61767.0,0.260673]
[1727836103496,0.03331828,61771.0,61769.0,0.129513]
[1727836103729,0.03331828,61771.0,61767.0,0.260673]
[1727836103958,0.00798811,61770.0,61767.0,0.001638]
[1727836104178,0.00798811,61770.0,61767.0,0.131156]
[1727836104414,0.00798811,61770.0,61767.0,0.001638]
[1727836104864,0.1689791,61768.0,61767.0,0.001638]
[1727836105072,0.0811,61768.0,61767.0,0.001638]
[1727836105511,0.006939,61771.0,61770.0,0.129512]
[1727836108292,0.03231859,61771.0,61769.0,0.129513]
[1727836108506,0.03231859,61771.0,61767.0,0.260675]
[1727836108507,0.03231859,61771.0,61770.0,0.129512]
[1727836109127,0.03531859,61771.0,61770.0,0.129512]
[1727836109352,0.03531859,61771.0,61768.0,0.388546]
[1727836109556,0.03531859,61771.0,61768.0,0.259032]
[1727836109775,0.03531859,61771.0,61770.0,0.129512]
[1727836110031,0.03531859,61771.0,61767.0,0.001638]
[1727836110242,0.03631859,61771.0,61769.0,0.129514]
[1727836110455,0.03331859,61771.0,61769.0,0.129514]
[1727836110873,0.03731859,61771.0,61769.0,0.129514]
[1727836111083,0.03531859,61771.0,61769.0,0.129514]
[1727836111298,0.03531859,61771.0,61767.0,0.001638]
[1727836111299,0.03331859,61771.0,61767.0,0.001638]
[1727836111496,0.03331859,61771.0,61769.0,0.129514]
[1727836111704,0.03531859,61771.0,61767.0,0.001638]
[1727836111925,0.03531859,61771.0,61769.0,0.129514]
[1727836112121,0.03531859,61771.0,61770.0,0.129512]
[1727836112325,0.03231859,61771.0,61770.0,0.129512]
[1727836112966,0.03331859,61771.0,61770.0,0.129512]
[1727836113189,0.03231859,61771.0,61770.0,0.129512]
[1727836113599,0.03331859,61771.0,61770.0,0.129512]
[1727836113874,0.03531859,61771.0,61770.0,0.129512]
[1727836114117,0.03631859,61771.0,61770.0,0.129512]
[1727836114328,0.03331859,61771.0,61770.0,0.129512]
[1727836114545,0.03231859,61771.0,61770.0,0.129512]
[1727836117034,0.03231859,61771.0,61770.0,0.130512]
[1727836117245,0.03231859,61771.0,61770.0,0.133512]
[1727836117679,0.03231859,61771.0,61770.0,0.132512]
[1727836117908,0.03231859,61771.0,61770.0,0.134512]
[1727836122169,0.03231859,61771.0,61770.0,0.132512]
[1727836124089,0.03231859,61771.0,61770.0,0.133512]
[1727836124298,0.03231859,61771.0,61770.0,0.004]
[1727836124503,0.20129769,61771.0,61770.0,0.001]
[1727836124925,0.20129769,61771.0,61770.0,0.003]
[1727836125136,0.33080769,61771.0,61770.0,0.003]
[1727836125389,0.33080769,61771.0,61770.0,0.002]
[1727836125595,0.129514,61770.0,61767.0,0.001638]
[1727836125806,0.129516,61768.0,61767.0,0.001638]
[1727836126496,0.0797,61769.0,61767.0,0.001638]
[1727836127230,0.209216,61769.0,61767.0,0.001638]
[1727836127445,0.129516,61768.0,61767.0,0.001638]
[1727836128071,0.129516,61768.0,61767.0,0.002638]
[1727836128683,0.130516,61768.0,61767.0,0.002638]
[1727836129113,0.133516,61768.0,61767.0,0.003638]
[1727836134301,0.15889929,61768.0,61767.0,0.003638]
[1727836134511,0.133516,61768.0,61767.0,0.003638]
[1727836137339,0.15889992,61768.0,61767.0,0.003638]
[1727836138307,0.20746993,61768.0,61767.0,0.003638]
[1727836138550,0.46093166,61768.0,61767.0,0.003638]
[1727836138800,0.41236165,61768.0,61767.0,0.003638]
[1727836139781,0.25889992,61768.0,61767.0,0.003638]
[1727836140073,0.25889992,61768.0,61756.0,0.014282]
[1727836140074,0.3924181,61757.0,61756.0,0.014282]
[1727836140284,0.3924181,61757.0,61752.0,0.24296023]
[1727836140285,0.2985271,61753.0,61752.0,0.24296023]
[1727836140520,0.2985271,61753.0,61749.0,0.001638]
[1727836140521,0.129554,61750.0,61749.0,0.001638]
[1727836141982,0.02538814,61753.0,61749.0,0.001638]
[1727836142188,0.1689791,61752.0,61749.0,0.001638]
[1727836142407,0.001,61750.0,61749.0,0.001638]
[1727836143056,0.01,61750.0,61749.0,0.001638]
[1727836143543,0.001,61750.0,61749.0,0.131194]
[1727836143773,0.02538814,61753.0,61752.0,0.12955]
[1727836143999,0.02538814,61753.0,61752.0,0.11455]
[1727836144239,0.02538814,61753.0,61750.0,0.259105]
[1727836144240,0.1,61759.0,61750.0,0.259105]
[1727836144470,0.1,61759.0,61752.0,0.259098]
[1727836144693,0.1,61759.0,61752.0,0.388646]
[1727836144927,0.1,61759.0,61752.0,0.129548]
[1727836145392,0.129543,61756.0,61749.0,0.260749]
[1727836145636,0.004,61753.0,61749.0,0.26398755]
[1727836145839,0.008,61750.0,61749.0,0.39454355]
[1727836146084,0.008,61750.0,61749.0,0.391305]
[1727836146296,0.004,61753.0,61749.0,0.260749]
[1727836146522,0.004,61753.0,61751.0,0.00199128]
[1727836146730,0.004,61753.0,61751.0,0.129551]
[1727836146933,0.005,61756.0,61751.0,0.129551]
[1727836147167,0.129544,61755.0,61752.0,0.001]
[1727836147430,0.26834822,61753.0,61749.0,0.001638]
[1727836147687,0.1689791,61750.0,61749.0,0.001638]
[1727836149091,0.24883599,61753.0,61749.0,0.001638]
[1727836150050,0.24883599,61753.0,61749.0,0.003638]
[1727836150051,0.001,61750.0,61749.0,0.003638]
[1727836150263,0.001,61750.0,61749.0,0.131194]
[1727836150466,0.11928799,61753.0,61749.0,0.001638]
[1727836150664,0.12128799,61753.0,61749.0,0.001638]
[1727836150810,0.11928799,61753.0,61749.0,0.001638]
[1727836151011,0.12328799,61753.0,61749.0,0.001638]
[1727836151447,0.02938799,61753.0,61750.0,0.259108]
[1727836151644,0.03138799,61753.0,61752.0,0.12955]
[1727836152231,0.02738799,61753.0,61752.0,0.12955]
[1727836152638,0.03038799,61753.0,61752.0,0.12955]
[1727836153082,0.02538799,61753.0,61752.0,0.12955]
[1727836153286,0.02838799,61753.0,61752.0,0.12955]
[1727836154374,0.02838799,61753.0,61752.0,0.13154128]
[1727836155029,0.003,61753.0,61752.0,0.13154128]
[1727836155877,0.002,61753.0,61752.0,0.13154128]
[1727836156112,0.002,61753.0,61752.0,0.13354128]
[1727836156551,0.002,61753.0,61752.0,0.13154128]
[1727836156745,0.24296023,61767.0,61752.0,0.13154128]
[1727836156912,0.24296023,61767.0,61765.0,0.129521]
[1727836157339,0.24296023,61767.0,61763.0,0.129526]
[1727836157536,0.1,61770.0,61760.0,0.259066]
[1727836157737,0.129519,61767.0,61760.0,0.259066]
[1727836157942,0.4280101,61769.0,61763.0,0.129526]
[1727836157943,0.2984941,61769.0,61763.0,0.129526]
[1727836158156,0.003,61767.0,61763.0,0.129526]
[1727836158325,0.02538345,61766.0,61763.0,0.129526]
[1727836158773,0.02538345,61766.0,61760.0,0.26205728]
[1727836158774,0.02538345,61766.0,61762.0,0.129528]
[1727836159082,0.2985031,61765.0,61760.0,0.001]
[1727836159307,0.129528,61763.0,61760.0,0.001]
[1727836159525,0.129525,61764.0,61760.0,0.001]
[1727836159930,0.129525,61764.0,61758.0,0.129537]
[1727836160142,0.1719791,61765.0,61757.0,0.259079]
[1727836160349,0.003,61765.0,61763.0,0.001]
[1727836160569,0.132523,61765.0,61759.0,0.129534]
[1727836160906,0.005,61764.0,61755.0,0.26107728]
[1727836161108,0.134525,61764.0,61758.0,0.129536]
[1727836161858,0.134525,61764.0,61758.0,0.00199128]
[1727836161859,0.12953,61762.0,61758.0,0.00199128]
[1727836162219,0.129528,61763.0,61758.0,0.13152828]
[1727836163114,0.006,61765.0,61752.0,0.26272928]
[1727836163322,0.006,61765.0,61756.0,0.00199128]
[1727836163323,0.129537,61759.0,61756.0,0.00199128]
[1727836163961,0.259055,61763.0,61754.0,0.13153628]
[1727836164217,0.129535,61760.0,61755.0,0.129542]
[1727836164428,0.129536,61759.0,61754.0,0.13153628]
[1727836164635,0.004,61759.0,61755.0,0.129543]
[1727836164843,0.129534,61760.0,61755.0,0.129543]
[1727836165047,0.259055,61763.0,61754.0,0.00199128]
[1727836165332,0.129533,61760.0,61754.0,0.26207928]
[1727836165538,0.129532,61761.0,61756.0,0.129541]
[1727836165755,0.008,61763.0,61758.0,0.13152828]
[1727836165958,0.02538511,61759.0,61756.0,0.00199128]
[1727836166160,0.02538511,61759.0,61757.0,0.129539]
[1727836166799,0.02538511,61759.0,61756.0,0.00199128]
[1727836166800,0.02938511,61759.0,61756.0,0.00199128]
[1727836167009,0.135531,61761.0,61756.0,0.13153128]
[1727836167214,0.129531,61761.0,61756.0,0.13153128]
[1727836167416,0.004,61759.0,61756.0,0.13153128]
[1727836167621,0.004,61759.0,61755.0,0.129543]
[1727836168033,0.008,61759.0,61755.0,0.129543]
[1727836168448,0.008,61759.0,61756.0,0.129541]
[1727836168783,0.02938507,61759.0,61756.0,0.129541]
[1727836169218,0.02938507,61759.0,61755.0,0.00199128]
[1727836169395,0.02538507,61759.0,61756.0,0.129541]
[1727836169812,0.02938507,61759.0,61756.0,0.129541]
[1727836170866,0.03338507,61759.0,61756.0,0.129541]
[1727836171780,0.02938507,61759.0,61757.0,0.129539]
[1727836172013,0.03338507,61759.0,61757.0,0.129539]
[1727836172418,0.03338507,61759.0,61758.0,0.129537]
[1727836172639,0.02538507,61759.0,61756.0,0.13153128]
[1727836172853,0.02838507,61759.0,61756.0,0.13153128]
[1727836173083,0.02738507,61759.0,61756.0,0.13153128]
[1727836173286,0.02538507,61759.0,61757.0,0.129539]
[1727836173492,0.02738507,61759.0,61757.0,0.129539]
[1727836173694,0.02938507,61759.0,61757.0,0.129539]
[1727836174118,0.03138507,61759.0,61757.0,0.129539]
[1727836174350,0.02738507,61759.0,61757.0,0.129539]
[1727836174554,0.02738507,61759.0,61755.0,0.13153428]
[1727836174847,0.02738507,61759.0,61752.0,0.00362928]
[1727836175078,0.12638507,61759.0,61753.0,0.129547]
[1727836175305,0.51499407,61759.0,61753.0,0.129547]
[1727836175562,0.25592207,61759.0,61754.0,0.129545]
[1727836175767,0.25874107,61759.0,61752.0,0.26272628]
[1727836175987,0.25674107,61759.0,61755.0,0.129543]
[1727836176209,0.129538,61758.0,61754.0,0.129546]
[1727836176646,0.12520407,61759.0,61752.0,0.26272628]
[1727836176647,0.12954,61757.0,61752.0,0.260735]
[1727836176861,0.12954,61757.0,61753.0,0.129547]
[1727836177068,0.12954,61757.0,61752.0,0.26272628]
[1727836177069,0.259076,61758.0,61752.0,0.001638]
[1727836177280,0.129542,61756.0,61752.0,0.131187]
[1727836177488,0.129539,61757.0,61753.0,0.129548]
[1727836177715,0.129539,61757.0,61752.0,0.260738]
[1727836177716,0.002,61758.0,61754.0,0.259089]
[1727836177993,0.002,61758.0,61755.0,0.129543]
[1727836178202,0.002,61758.0,61755.0,0.00199128]
[1727836178430,0.002,61758.0,61757.0,0.129539]
[1727836178839,0.001,61758.0,61757.0,0.129539]
[1727836179453,0.02620407,61759.0,61758.0,0.129537]
[1727836182786,0.02620407,61759.0,61758.0,0.13152828]
[1727836184430,0.000819,61759.0,61758.0,0.13152828]
[1727836187064,0.000819,61759.0,61758.0,0.13476647]
[1727836188312,0.000819,61759.0,61758.0,0.13676647]
[1727836188524,0.000819,61759.0,61758.0,0.13352828]
[1727836189090,0.0272011,61759.0,61758.0,0.13852828]
[1727836189344,0.001819,61759.0,61758.0,0.13852828]
[1727836190346,0.002819,61759.0,61758.0,0.14252828]
[1727836190959,0.002819,61759.0,61758.0,0.14576623]
[1727836191795,0.02820092,61759.0,61758.0,0.14576623]
[1727836192001,0.02820092,61759.0,61758.0,0.14252828]
[1727836192502,0.002819,61759.0,61758.0,0.14252828]
[1727836192751,0.002819,61759.0,61758.0,0.14576623]
[1727836193475,0.002819,61759.0,61758.0,0.14576624]
[1727836193936,0.002819,61759.0,61758.0,0.14252828]
[1727836195963,0.02820087,61759.0,61758.0,0.14252828]
[1727836196910,0.002819,61759.0,61758.0,0.14252828]
[1727836199942,0.02820093,61759.0,61758.0,0.14252828]
[1727836201986,0.002819,61759.0,61758.0,0.14252828]
[1727836202843,0.002819,61759.0,61758.0,0.38872663]
[1727836203091,0.002819,61759.0,61758.0,0.14252828]
[1727836203358,0.002819,61759.0,61758.0,0.1457663]
[1727836203801,0.002819,61759.0,61758.0,0.21852828]
[1727836204029,0.002819,61759.0,61758.0,0.22176596]
[1727836204260,0.002819,61759.0,61758.0,0.21852828]
[1727836204494,0.002819,61759.0,61758.0,0.14252828]
[1727836209211,0.02820123,61759.0,61758.0,0.14252828]
[1727836209676,0.02820123,61759.0,61758.0,0.011]
[1727836209891,0.35205426,61759.0,61758.0,0.011]
[1727836210545,0.33133623,61759.0,61758.0,0.007]
[1727836210760,0.33133623,61759.0,61758.0,0.011]
[1727836210992,0.33233623,61759.0,61758.0,0.011]
[1727836211234,0.33133623,61759.0,61758.0,0.004]
[1727836211465,0.33133623,61759.0,61752.0,0.24459823]
[1727836211466,0.129539,61757.0,61752.0,0.37414623]
[1727836211741,0.129539,61757.0,61749.0,0.001638]
[1727836211742,0.1746,61752.0,61749.0,0.001638]
[1727836211952,0.1746,61752.0,61751.0,0.24296023]
[1727836212169,0.1746,61752.0,61750.0,0.129553]
[1727836212380,0.1746,61752.0,61750.0,0.129554]
[1727836213048,0.1746,61752.0,61751.0,0.129552]
[1727836213269,0.1766,61752.0,61751.0,0.129552]
[1727836214156,0.1766,61752.0,61749.0,0.131193]
[1727836214371,0.1766,61752.0,61751.0,0.129552]
[1727836214580,0.1746,61752.0,61751.0,0.129552]
[1727836214786,0.1746,61752.0,61749.0,0.001638]
[1727836215002,0.20198789,61752.0,61750.0,0.129554]
[1727836215416,0.20498789,61752.0,61750.0,0.129554]
[1727836215836,0.20498789,61752.0,61749.0,0.001638]
[1727836216319,0.20098789,61752.0,61749.0,0.131193]
[1727836216535,0.20198789,61752.0,61749.0,0.131193]
[1727836216955,0.20398789,61752.0,61749.0,0.131193]
[1727836217137,0.20398789,61752.0,61749.0,0.001638]
[1727836217622,0.20198789,61752.0,61749.0,0.001638]
[1727836217840,0.19998789,61752.0,61749.0,0.001638]
[1727836218286,0.20198789,61752.0,61749.0,0.001638]
[1727836218492,0.129554,61750.0,61749.0,0.001638]
[1727836218955,0.20198789,61752.0,61749.0,0.001638]
[1727836219186,0.129554,61750.0,61749.0,0.001638]
[1727836219401,0.33153989,61752.0,61749.0,0.001638]
[1727836219619,0.32953989,61752.0,61749.0,0.001638]
[1727836219831,0.19998789,61752.0,61749.0,0.132193]
[1727836220059,0.20198789,61752.0,61749.0,0.132193]
[1727836220493,0.19998789,61752.0,61749.0,0.132193]
[1727836220694,0.20598789,61752.0,61749.0,0.132193]
[1727836221107,0.19998789,61752.0,61749.0,0.131193]
[1727836221317,0.005,61750.0,61749.0,0.131193]
[1727836221526,0.20498789,61752.0,61749.0,0.131193]
[1727836221934,0.20998789,61752.0,61749.0,0.131193]
[1727836222141,0.20580689,61752.0,61749.0,0.131193]
[1727836222563,0.003,61750.0,61749.0,0.131193]
[1727836222811,0.20580689,61752.0,61749.0,0.131193]
[1727836222812,0.20080689,61752.0,61749.0,0.131193]
[1727836223020,0.20580689,61752.0,61749.0,0.131193]
[1727836223228,0.003,61750.0,61749.0,0.131193]
[1727836223875,0.20580689,61752.0,61749.0,0.131193]
[1727836224088,0.20980689,61752.0,61749.0,0.131193]
[1727836224300,0.20480689,61752.0,61749.0,0.131193]
[1727836224508,0.33035689,61752.0,61749.0,0.131193]
[1727836224714,0.33435689,61752.0,61749.0,0.131193]
[1727836224927,0.002,61750.0,61749.0,0.131193]
[1727836226228,0.002,61750.0,61749.0,0.13318428]
[1727836226479,0.002,61750.0,61749.0,0.131193]
[1727836226931,0.33035689,61752.0,61749.0,0.131193]
[1727836227149,0.33435689,61752.0,61749.0,0.131193]
[1727836227570,0.002,61750.0,61749.0,0.131193]
[1727836228462,0.20480689,61752.0,61749.0,0.131193]
[1727836228675,0.20880689,61752.0,61749.0,0.131193]
[1727836228913,0.002,61750.0,61749.0,0.131193]
[1727836229333,0.002,61750.0,61749.0,0.001638]
[1727836229542,0.46390789,61752.0,61749.0,0.001638]
[1727836229755,0.59345889,61752.0,61749.0,0.001638]
[1727836230002,0.24044753,61750.0,61749.0,0.001638]
[1727836230439,0.24244753,61750.0,61749.0,0.001638]
[1727836230914,0.24044753,61750.0,61749.0,0.001638]
[1727836231566,0.24244753,61750.0,61749.0,0.001638]
[1727836231797,0.131554,61750.0,61749.0,0.001638]
[1727836232044,0.133554,61750.0,61749.0,0.001638]
[1727836232257,0.131554,61750.0,61749.0,0.001638]
[1727836232695,0.135554,61750.0,61749.0,0.001638]
[1727836233343,0.133554,61750.0,61749.0,0.001638]
[1727836233603,0.138554,61750.0,61749.0,0.001638]
[1727836234230,0.143554,61750.0,61749.0,0.001638]
[1727836234439,0.134554,61750.0,61749.0,0.001638]
[1727836234648,0.134554,61750.0,61749.0,0.002638]
[1727836234892,0.146554,61750.0,61749.0,0.002638]
[1727836239246,0.17194358,61750.0,61749.0,0.002638]
[1727836239479,0.129578,61739.0,61734.0,0.00199128]
[1727836239698,0.259151,61741.0,61734.0,0.00199128]
[1727836239699,0.305175,61740.0,61738.0,0.24296023]
[1727836239916,0.1756,61740.0,61736.0,0.129583]
[1727836240128,0.1756,61740.0,61737.0,0.129581]
[1727836240596,0.20099369,61740.0,61737.0,0.129581]
[1727836241018,0.20099369,61740.0,61738.0,0.129579]
[1727836241250,0.003,61739.0,61738.0,0.129579]
[1727836241933,0.20499369,61740.0,61738.0,0.129579]
[1727836242355,0.20499369,61740.0,61734.0,0.00199128]
[1727836242356,0.20899369,61740.0,61734.0,0.00199128]
[1727836242563,0.33056969,61740.0,61736.0,0.129582]
[1727836242777,0.33056969,61740.0,61737.0,0.129581]
[1727836242991,0.20599369,61740.0,61737.0,0.129581]
[1727836243242,0.1806,61740.0,61737.0,0.129581]
[1727836243453,0.1756,61740.0,61737.0,0.129581]
[1727836243873,0.003,61739.0,61737.0,0.129581]
[1727836244126,0.1013,61740.0,61738.0,0.24296023]
[1727836244341,0.005,61740.0,61739.0,0.129577]
[1727836244561,0.004,61740.0,61739.0,0.129577]
[1727836244771,0.24296023,61745.0,61740.0,0.25915]
[1727836244997,0.24296023,61747.0,61743.0,0.129568]
[1727836245214,0.37252223,61747.0,61743.0,0.126568]
[1727836245431,0.129562,61747.0,61743.0,0.126568]
[1727836245857,0.129562,61747.0,61743.0,0.122568]
[1727836246073,0.0915,61748.0,61743.0,0.388707]
[1727836246287,0.02539143,61747.0,61745.0,0.129563]
[1727836246498,0.02539143,61747.0,61741.0,0.259144]
[1727836246916,0.03639143,61747.0,61745.0,0.129564]
[1727836247125,0.03639143,61747.0,61746.0,0.129563]
[1727836247550,0.03839143,61747.0,61746.0,0.129563]
[1727836247754,0.02739143,61747.0,61745.0,0.129565]
[1727836248851,0.129563,61746.0,61742.0,0.129571]
[1727836249076,0.02539143,61747.0,61744.0,0.129565]
[1727836249544,0.02639143,61747.0,61744.0,0.129565]
[1727836250015,0.02539143,61747.0,61744.0,0.129565]
[1727836250251,0.02639143,61747.0,61744.0,0.129565]
[1727836251517,0.02639143,61747.0,61745.0,0.129564]
[1727836251769,0.001,61747.0,61745.0,0.129564]
[1727836252205,0.001,61747.0,61746.0,0.46656335]
[1727836252209,0.001,61747.0,61746.0,0.54101558]
[1727836252420,0.000819,61752.0,61751.0,0.13154328]
[1727836253036,0.000819,61752.0,61751.0,0.129552]
[1727836253865,0.000819,61752.0,61746.0,0.005]
[1727836254065,0.129553,61751.0,61747.0,0.12956]
[1727836254270,0.13037,61752.0,61748.0,0.129557]
[1727836254489,0.004819,61752.0,61746.0,0.005]
[1727836254748,0.004819,61752.0,61750.0,0.129553]
[1727836255130,0.02538878,61751.0,61750.0,0.129553]
[1727836256240,0.02738878,61751.0,61750.0,0.129553]
[1727836256658,0.02538878,61751.0,61748.0,0.131198]
[1727836257081,0.02638878,61751.0,61748.0,0.13318928]
[1727836257929,0.02638878,61751.0,61749.0,0.129555]
[1727836258131,0.02538878,61751.0,61748.0,0.00363128]
[1727836258352,0.02638878,61751.0,61748.0,0.00363128]
[1727836258561,0.02638878,61751.0,61748.0,0.13318828]
[1727836258797,0.02838878,61751.0,61748.0,0.13318828]
[1727836259539,0.02638878,61751.0,61748.0,0.13318828]
[1727836259744,0.02638878,61751.0,61749.0,0.129556]
[1727836260031,0.02638878,61751.0,61748.0,0.00363128]
[1727836260288,0.02638878,61751.0,61748.0,0.13318828]
[1727836260769,0.02738878,61751.0,61749.0,0.129556]
[1727836261036,0.02638878,61751.0,61748.0,0.131198]
[1727836261511,0.15494178,61751.0,61748.0,0.00164]
[1727836261986,0.02738878,61751.0,61748.0,0.131198]
[1727836262200,0.02738878,61751.0,61749.0,0.129556]
[1727836262682,0.02538878,61751.0,61749.0,0.129556]
[1727836263352,0.02538878,61751.0,61750.0,0.129554]
[1727836263559,0.02538878,61751.0,61749.0,0.13154728]
[1727836263819,0.02538878,61751.0,61750.0,0.129554]
[1727836264679,0.02538878,61751.0,61749.0,0.00199128]
[1727836264889,0.02738878,61751.0,61749.0,0.13154728]
[1727836265326,0.02538878,61751.0,61750.0,0.129554]
[1727836265769,0.02538878,61751.0,61749.0,0.00199128]
[1727836266015,0.02638878,61751.0,61749.0,0.13154728]
[1727836267307,0.02638878,61751.0,61750.0,0.129554]
[1727836267491,0.000819,61752.0,61749.0,0.26110328]
[1727836267748,0.000819,61752.0,61751.0,0.129552]
[1727836269041,0.000819,61752.0,61751.0,0.130552]
[1727836269475,0.000819,61752.0,61751.0,0.13379052]
[1727836270834,0.001819,61752.0,61751.0,0.14079052]
[1727836271050,0.001819,61752.0,61751.0,0.13979052]
[1727836271291,0.002819,61752.0,61751.0,0.14479052]
[1727836271530,0.002819,61752.0,61751.0,0.1467818]
[1727836272604,0.002819,61752.0,61751.0,0.14354328]
[1727836274178,0.002819,61752.0,61751.0,0.14678161]
[1727836275744,0.002819,61752.0,61751.0,0.25438449]
[1727836278575,0.02820474,61752.0,61751.0,0.25438449]
[1727836290613,0.02820474,61752.0,61751.0,0.14354328]
[1727836290853,0.02820474,61752.0,61751.0,0.012]
[1727836290854,0.36629595,61752.0,61751.0,0.012]
[1727836291076,0.49177931,61752.0,61751.0,0.012]
[1727836291740,0.42021021,61752.0,61751.0,0.007]
[1727836292184,0.46877197,61752.0,61751.0,0.007]
[1727836292390,0.129556,61749.0,61748.0,0.00164]
[1727836292601,0.41839721,61749.0,61748.0,0.00164]
[1727836293955,0.42739721,61749.0,61748.0,0.00164]
[1727836294495,0.4527884,61749.0,61748.0,0.00164]
[1727836294819,0.9048064,61749.0,61748.0,0.00164]
[1727836295516,0.87941521,61749.0,61748.0,0.00164]
[1727836298463,0.7519512,61749.0,61748.0,0.00164]
[1727836298885,0.81055111,61749.0,61748.0,0.00164]
[1727836299083,0.6616002,61749.0,61748.0,0.00164]
[1727836301886,0.63620821,61749.0,61748.0,0.00164]
[1727836302135,0.78476997,61749.0,61748.0,0.00164]
[1727836302369,0.73620821,61749.0,61748.0,0.00164]
[1727836302580,0.80905086,61749.0,61748.0,0.00164]
[1727836303411,0.96371174,61749.0,61748.0,0.00164]
[1727836304257,0.80905086,61749.0,61748.0,0.00164]
[1727836304490,0.73620821,61749.0,61748.0,0.00164]
[1727836305145,1.85320521,61749.0,61748.0,0.00164]
[1727836305363,1.85811745,61749.0,61748.0,0.00164]
[1727836306500,1.88351045,61749.0,61748.0,0.00164]
[1727836306737,2.02299927,61749.0,61748.0,0.00164]
[1727836307390,1.85811745,61749.0,61748.0,0.00164]
[1727836308272,1.80960521,61749.0,61748.0,0.00164]
[1727836309327,1.83499829,61749.0,61748.0,0.00164]
[1727836311897,1.80960521,61749.0,61748.0,0.00164]
[1727836314861,1.81042521,61749.0,61748.0,0.00164]
[1727836315315,3.13108021,61749.0,61748.0,0.00164]
[1727836316528,3.15647313,61749.0,61748.0,0.00164]